bitfinex-derivatives/quotes_ETHF0:USTF0_20250906
["timestamp","ask_amount","ask_price","bid_price","bid_amount"]
[1757153995032,0.852,4295.0,4294.9,0.7526]
[1757153995234,0.852,4295.0,4294.9,0.5186]
[1757153995530,0.852,4295.0,4294.9,0.7526]
[1757153995831,0.852,4295.0,4294.9,0.2119]
[1757153996036,0.852,4295.0,4294.9,0.234]
[1757153996328,0.7334,4294.8,4294.7,3.3419]
[1757153996534,1.3448293,4294.8,4294.7,3.5759]
[1757153996927,1.3448293,4294.8,4294.7,3.3419]
[1757153997235,1.3448293,4294.8,4294.7,3.5759]
[1757153998125,1.3448293,4294.8,4294.7,3.3419]
[1757154000235,1.3448293,4294.8,4294.7,3.2078]
[1757154002536,1.3448293,4294.8,4294.7,3.7264]
[1757154006031,1.3448293,4294.8,4294.6,0.234]
[1757154006336,0.7334,4294.6,4294.5,0.1293]
[1757154006537,1.3448293,4294.6,4294.5,0.1293]
[1757154006929,1.3448293,4294.6,4294.4,0.234]
[1757154007138,1.4634293,4294.5,4294.4,0.234]
[1757154007341,1.4634293,4294.5,4294.4,0.7526]
[1757154008541,1.4634293,4294.5,4294.4,0.5186]
[1757154008943,1.4634293,4294.5,4294.3,0.234]
[1757154009143,1.0269293,4294.4,4294.3,0.234]
[1757154009341,1.0269293,4294.4,4294.3,0.4459]
[1757154009342,1.3448293,4294.4,4294.3,0.4459]
[1757154009552,1.3448293,4294.4,4294.3,0.7526]
[1757154010859,1.3448293,4294.4,4294.3,0.9659]
[1757154011458,1.3448293,4294.4,4294.3,0.7319]
[1757154013251,1.3448293,4294.4,4294.3,0.2119]
[1757154013560,1.3448293,4294.4,4294.3,0.5186]
[1757154014957,0.4155,4294.2,4294.1,0.6715]
[1757154015162,0.7334,4294.2,4294.1,0.8834]
[1757154015456,0.7334,4294.2,4294.1,0.9659]
[1757154017160,0.7334,4294.2,4294.1,0.7319]
[1757154017462,0.7334,4294.2,4294.1,0.9659]
[1757154019664,0.7334,4294.2,4294.1,0.7319]
[1757154019857,0.7334,4294.2,4294.1,0.9659]
[1757154020453,1.34832738,4294.2,4294.1,0.7319]
[1757154020663,1.34832738,4294.2,4294.1,0.9659]
[1757154025762,0.61492738,4294.2,4294.1,0.9659]
[1757154035163,3.2078,4295.0,4294.1,10.56977]
[1757154035363,0.61827762,4294.9,4294.8,0.7105]
[1757154035570,0.61827762,4294.9,4294.8,0.9445]
[1757154035571,1.33067762,4294.9,4294.8,0.9445]
[1757154042774,1.33067762,4294.9,4294.6,3.2078]
[1757154042775,0.4019,4294.7,4294.6,3.2078]
[1757154042975,1.33067762,4294.7,4294.6,3.4418]
[1757154043368,1.33067762,4294.7,4294.6,3.2078]
[1757154046778,1.33067762,4294.7,4294.6,3.4418]
[1757154047280,1.33067762,4294.7,4294.6,3.4135]
[1757154047479,1.33067762,4294.7,4294.6,3.9382]
[1757154049378,1.33067762,4294.7,4294.6,3.4418]
[1757154050176,1.33067762,4294.7,4294.6,3.9525]
[1757154051684,1.33067762,4294.7,4294.4,0.1295]
[1757154051685,0.8327,4294.5,4294.4,0.1295]
[1757154051877,1.45097762,4294.5,4294.4,0.1295]
[1757154052078,1.45097762,4294.5,4294.3,0.234]
[1757154052379,1.32397762,4294.4,4294.3,0.234]
[1757154054381,1.32397762,4294.4,4294.1,3.2078]
[1757154054576,1.32397762,4294.3,4294.2,0.234]
[1757154056484,1.02227762,4294.3,4294.1,3.7478]
[1757154056781,1.32397762,4294.2,4294.1,3.9525]
[1757154057184,1.32397762,4294.2,4294.1,0.7447]
[1757154059485,1.32397762,4294.2,4294.1,0.5107]
[1757154067090,1.32397762,4294.2,4294.1,0.2047]
[1757154071590,1.32397762,4294.2,4294.1,0.5107]
[1757154071793,1.45723483,4294.2,4294.1,0.5107]
[1757154073293,1.45723483,4294.2,4294.1,0.2047]
[1757154073488,1.45723483,4294.2,4293.9,0.4342]
[1757154073489,0.8327,4294.0,4293.9,0.6389]
[1757154073693,1.58423483,4294.0,4293.9,0.1282]
[1757154073890,1.58423483,4294.0,4293.9,0.6389]
[1757154075694,1.58423483,4294.0,4293.9,0.5107]
[1757154077188,1.58423483,4294.0,4293.9,0.2047]
[1757154077590,1.58423483,4294.0,4293.7,0.306]
[1757154077791,0.7057,4293.8,4293.7,0.5107]
[1757154077998,1.45723483,4293.8,4293.7,0.5107]
[1757154079298,1.45723483,4293.8,4293.7,0.7246]
[1757154081698,1.32397762,4293.8,4293.7,0.7246]
[1757154081901,1.45742247,4293.8,4293.7,0.7246]
[1757154083703,1.45741074,4293.8,4293.7,0.7246]
[1757154089615,1.45741074,4293.8,4293.7,1.01541455]
[1757154092215,1.32397762,4293.8,4293.7,1.01541455]
[1757154097617,1.32397762,4293.8,4293.7,1.01535612]
[1757154100617,1.32397762,4293.8,4293.7,0.29075612]
[1757154100819,0.1198,4293.5,4293.3,0.234]
[1757154101120,1.31937762,4293.4,4293.3,0.4362]
[1757154101314,1.31937762,4293.4,4293.3,0.7283]
[1757154101715,1.31937762,4293.4,4293.3,0.89976122]
[1757154102316,1.31937762,4293.4,4293.3,0.66576122]
[1757154103819,1.31937762,4293.4,4293.3,0.17146122]
[1757154104017,1.31937762,4293.4,4293.3,0.66576122]
[1757154104320,1.31937762,4293.4,4293.3,0.66571918]
[1757154104517,1.31937762,4293.4,4293.3,0.17141918]
[1757154114525,2.40277636,4293.4,4293.3,0.17141918]
[1757154114724,0.828,4292.0,4291.9,3.2078]
[1757154115022,1.44627762,4292.0,4291.9,3.2078]
[1757154115830,1.44627762,4292.0,4291.5,0.2908]
[1757154116124,0.7107,4291.6,4291.5,0.501]
[1757154116326,0.7107,4291.5,4291.4,3.2078]
[1757154116531,1.32887926,4291.5,4291.4,4.76237873]
[1757154116832,0.5111,4291.5,4291.4,4.76237873]
[1757154117330,0.7107,4291.9,4291.8,0.501]
[1757154117533,1.32849101,4291.9,4291.8,0.501]
[1757154117827,1.32849101,4291.9,4291.5,0.1225]
[1757154117828,0.4036,4291.6,4291.5,0.2908]
[1757154118032,0.4036,4291.6,4291.4,3.2078]
[1757154118033,0.4036,4291.4,4291.3,0.735]
[1757154118331,0.7107,4291.4,4291.3,0.501]
[1757154119433,0.7107,4291.4,4291.3,0.7041]
[1757154120426,0.1173,4292.0,4291.3,0.7041]
[1757154120627,0.5111,4291.8,4291.7,0.7041]
[1757154120825,1.12825437,4291.8,4291.7,0.7041]
[1757154121131,1.32785437,4291.8,4291.7,0.7041]
[1757154121631,1.32767228,4291.8,4291.7,0.7041]
[1757154121832,1.32767024,4291.8,4291.7,0.7041]
[1757154122034,0.7107,4291.8,4291.7,0.7041]
[1757154124835,0.5111,4291.8,4291.7,0.7041]
[1757154125238,0.204,4291.8,4291.7,0.7041]
[1757154125939,3.6114,4292.4,4292.3,0.7041]
[1757154126229,3.9185,4292.4,4292.3,0.7041]
[1757154126424,3.9185,4292.4,4292.3,0.2102]
[1757154126938,3.9185,4292.4,4292.1,0.2908]
[1757154127238,3.9185,4292.4,4291.8,3.8551]
[1757154127239,0.4036,4291.9,4291.8,3.8551]
[1757154127437,0.7107,4291.9,4291.8,4.1459]
[1757154130638,0.5111,4291.9,4291.8,4.1459]
[1757154131032,0.3071,4292.4,4292.0,0.1225]
[1757154131340,0.72646,4291.9,4291.8,3.4418]
[1757154133345,0.72646,4291.9,4291.8,3.2078]
[1757154133542,0.72646,4291.9,4291.8,3.4418]
[1757154133840,0.41936,4291.9,4291.8,4.45012644]
[1757154134045,0.72646,4291.9,4291.8,3.4418]
[1757154135144,0.41936,4291.9,4291.8,3.4418]
[1757154136638,0.72646,4291.9,4291.8,3.4418]
[1757154140450,0.93046,4291.9,4291.8,3.4418]
[1757154140650,1.14546,4291.9,4291.8,3.4418]
[1757154146546,1.14546,4291.9,4291.8,3.2078]
[1757154146751,1.14546,4291.9,4291.8,3.4418]
[1757154147549,1.14546,4291.9,4291.8,3.2078]
[1757154147752,1.14546,4291.9,4291.8,3.4418]
[1757154150154,0.72646,4291.9,4291.8,4.45012644]
[1757154150843,0.93816,4291.9,4291.8,3.4418]
[1757154151050,1.15316,4291.9,4291.8,3.4418]
[1757154152856,1.15316,4291.9,4291.8,3.2078]
[1757154153057,0.72646,4291.9,4291.8,3.4418]
[1757154154156,0.93816,4291.9,4291.8,3.4418]
[1757154155053,0.93816,4291.9,4291.8,3.2078]
[1757154155259,1.55721044,4291.9,4291.8,3.2078]
[1757154155557,1.77221044,4291.9,4291.8,3.2078]
[1757154155857,1.77221044,4291.9,4291.8,3.4418]
[1757154160964,1.77221044,4291.9,4291.8,3.2078]
[1757154161164,1.77221044,4291.9,4291.8,3.4418]
[1757154165470,1.15316,4291.9,4291.8,3.4418]
[1757154165671,1.77239668,4291.9,4291.8,3.4418]
[1757154167971,1.34569668,4291.9,4291.8,3.4418]
[1757154168975,1.34569668,4291.9,4291.8,4.45012644]
[1757154171575,1.54809668,4291.9,4291.8,3.4418]
[1757154172077,1.75029668,4291.9,4291.8,3.2078]
[1757154172277,1.75029668,4291.9,4291.8,3.4418]
[1757154176376,1.54809668,4291.9,4291.8,3.4418]
[1757154176584,1.34569668,4291.9,4291.8,3.4418]
[1757154177484,0.72646,4291.9,4291.8,3.4418]
[1757154178482,0.92886,4291.9,4291.8,3.4418]
[1757154179386,0.92886,4291.9,4291.8,3.2078]
[1757154179584,0.92886,4291.9,4291.8,4.29296066]
[1757154180286,0.92886,4291.9,4291.8,4.05896066]
[1757154180481,1.13106,4291.9,4291.8,4.29296066]
[1757154181182,1.75011602,4291.9,4291.8,3.4418]
[1757154183990,1.75011602,4291.9,4291.8,3.72873937]
[1757154185091,1.75011602,4291.9,4291.8,3.49473937]
[1757154185290,1.75011602,4291.9,4291.8,3.72873937]
[1757154186196,1.75011602,4291.9,4291.8,3.4418]
[1757154189095,1.75011602,4291.9,4291.8,3.2078]
[1757154189293,1.75011602,4291.9,4291.8,3.4418]
[1757154192394,1.54791602,4291.9,4291.8,3.4418]
[1757154194103,1.34551602,4291.9,4291.8,3.4418]
[1757154194402,1.54791602,4291.9,4291.8,3.4418]
[1757154195605,1.54791602,4291.9,4291.8,4.29296066]
[1757154196699,1.54791602,4291.9,4291.8,3.2078]
[1757154196904,1.54791602,4291.9,4291.8,3.4418]
[1757154197105,1.75011602,4291.9,4291.8,3.4418]
[1757154199107,1.75011602,4291.9,4291.8,3.2078]
[1757154199305,1.75011602,4291.9,4291.8,3.4418]
[1757154199605,1.75011602,4291.9,4291.8,3.2078]
[1757154199805,1.75011602,4291.9,4291.8,3.4418]
[1757154204807,1.34551602,4291.9,4291.8,3.4418]
[1757154209018,1.54511602,4291.9,4291.8,3.4418]
[1757154213022,1.75721602,4291.9,4291.8,3.4418]
[1757154213224,1.75721602,4291.9,4291.8,3.2078]
[1757154213623,1.75721602,4291.9,4291.8,0.234]
[1757154216324,1.33785602,4291.9,4291.8,0.234]
[1757154216530,6.42201668,4291.9,4291.8,0.234]
[1757154216932,6.42201668,4291.9,4291.6,0.1351]
[1757154217128,1.03075602,4291.8,4291.7,0.234]
[1757154217330,1.33985602,4291.8,4291.7,0.234]
[1757154217528,0.4117,4291.4,4291.3,3.2078]
[1757154217730,0.7208,4291.4,4291.3,3.4418]
[1757154217926,0.7208,4291.4,4291.3,3.2078]
[1757154218122,0.7208,4291.4,4291.3,3.4418]
[1757154220435,0.7208,4291.4,4291.3,3.2078]
[1757154220629,0.7208,4291.4,4291.3,3.4418]
[1757154222837,0.7208,4291.4,4291.3,3.2078]
[1757154223039,0.7208,4291.4,4291.3,3.4418]
[1757154223940,0.7208,4291.4,4291.3,3.2078]
[1757154224132,0.7208,4291.4,4291.3,3.4418]
[1757154224638,0.7208,4291.4,4291.3,3.2078]
[1757154224840,0.7208,4291.4,4291.3,3.4418]
[1757154225139,0.7208,4291.4,4291.3,3.2078]
[1757154225339,0.7208,4291.4,4291.3,3.4418]
[1757154226636,1.33947603,4291.4,4291.3,3.4418]
[1757154227741,1.12737603,4291.4,4291.3,3.4418]
[1757154228538,1.33947603,4291.4,4291.3,3.2078]
[1757154228738,1.33947603,4291.4,4291.3,3.4418]
[1757154229341,1.12737603,4291.4,4291.3,3.4418]
[1757154229841,0.92777603,4291.4,4291.3,3.4418]
[1757154230038,1.34787603,4291.4,4291.3,3.4418]
[1757154230543,0.7292,4291.4,4291.3,3.4418]
[1757154231235,1.34774628,4291.4,4291.3,3.4418]
[1757154231438,0.7292,4291.4,4291.3,3.4418]
[1757154232445,2.19884344,4291.4,4291.3,3.4418]
[1757154232837,2.19884344,4291.4,4291.3,3.2078]
[1757154233039,2.19884344,4291.4,4291.3,3.4418]
[1757154234647,2.19884344,4291.4,4291.3,3.2078]
[1757154234949,2.19884344,4291.4,4291.3,3.4418]
[1757154236842,1.34768278,4291.4,4291.3,3.4418]
[1757154237949,1.34768278,4291.4,4291.3,3.2078]
[1757154238136,1.34768278,4291.4,4291.3,3.4418]
[1757154239046,0.92758278,4291.4,4291.3,3.4418]
[1757154239449,1.13968278,4291.4,4291.3,3.4418]
[1757154240251,1.34768278,4291.4,4291.3,3.2078]
[1757154240451,1.34768278,4291.4,4291.3,3.4418]
[1757154243550,0.4201,4290.9,4290.8,3.2078]
[1757154243755,1.46403855,4290.9,4290.8,0.234]
[1757154244648,1.46403855,4290.9,4290.7,3.2078]
[1757154244848,1.46403855,4290.8,4290.7,3.2078]
[1757154245048,1.46403855,4290.8,4290.7,3.4418]
[1757154245251,1.15923855,4290.8,4290.2,3.2078]
[1757154245549,0.3048,4290.4,4290.3,0.234]
[1757154245852,0.92328278,4290.4,4290.3,0.234]
[1757154246355,0.7249,4290.3,4290.2,3.2078]
[1757154246649,0.7249,4289.8,4289.7,3.4418]
[1757154246848,0.3048,4289.7,4288.7,0.00505212]
[1757154247047,1.00843389,4289.2,4288.9,0.3979]
[1757154247350,3.2078,4289.3,4288.7,0.00505212]
[1757154247351,1.03858278,4289.1,4289.0,0.2589]
[1757154247651,1.34338278,4289.1,4288.7,0.11205212]
[1757154247854,4.63633389,4288.8,4288.7,0.11205212]
[1757154248055,5.55961667,4288.8,4288.7,0.19895212]
[1757154248253,4.24638278,4288.8,4288.7,0.3979]
[1757154248455,3.2078,4289.3,4288.7,0.3979]
[1757154248656,3.2078,4289.3,4289.2,0.3979]
[1757154248952,0.3048,4290.6,4290.1,0.3979]
[1757154249253,1.73333389,4290.3,4290.2,0.7041]
[1757154249448,0.1192,4290.0,4289.6,0.5001]
[1757154249657,0.7249,4289.7,4289.5,0.235]
[1757154249848,0.7249,4289.7,4289.0,0.1259]
[1757154249849,0.7249,4289.7,4289.4,0.235]
[1757154250049,0.7249,4289.2,4289.1,0.7041]
[1757154250251,0.7249,4289.2,4289.1,0.4299]
[1757154250455,3.2078,4290.0,4289.9,0.3979]
[1757154250655,3.2078,4290.0,4289.9,0.9401]
[1757154251058,0.2121,4290.6,4290.5,0.83]
[1757154251652,3.2078,4290.7,4290.6,0.7041]
[1757154252052,0.2121,4290.7,4290.6,0.7041]
[1757154253155,0.7249,4290.7,4290.6,0.5001]
[1757154253457,0.7249,4290.7,4290.6,0.7041]
[1757154256357,3.2078,4290.9,4289.9,0.3062]
[1757154256358,0.3048,4290.3,4289.9,0.3062]
[1757154256659,0.5169,4290.3,4290.2,0.7041]
[1757154257653,0.2121,4290.3,4290.2,0.7041]
[1757154258055,0.7249,4290.3,4290.2,0.7041]
[1757154259751,3.2078,4290.9,4290.5,0.1203]
[1757154259952,3.4077,4290.9,4290.8,0.7063]
[1757154260153,3.2078,4290.9,4290.8,0.7063]
[1757154260553,0.2967,4291.3,4290.9,0.3038]
[1757154260755,0.1999,4291.0,4290.9,0.7063]
[1757154261351,3.2078,4291.4,4291.3,0.7063]
[1757154262356,3.2078,4291.4,4291.3,1.71473389]
[1757154262651,3.9044,4292.0,4291.9,0.7063]
[1757154262851,3.9044,4292.0,4291.9,0.206]
[1757154262852,4.63667939,4292.0,4291.9,0.206]
[1757154263059,4.0291,4292.0,4291.9,0.206]
[1757154263660,3.9044,4292.0,4291.9,0.7063]
[1757154264758,4.51189929,4292.0,4291.9,0.7063]
[1757154265268,3.9044,4292.0,4291.9,0.7063]
[1757154266267,0.41937,4291.7,4291.6,0.19]
[1757154266467,0.91597,4291.7,4291.6,0.19]
[1757154266667,1.11597,4291.7,4291.6,0.19]
[1757154266868,0.1247,4291.5,4291.2,3.2078]
[1757154267063,0.3246,4291.5,4291.3,0.237]
[1757154267270,0.2967,4291.4,4291.3,0.237]
[1757154267567,0.4966,4291.4,4291.3,0.237]
[1757154267872,0.1247,4291.0,4290.7,3.2078]
[1757154268077,0.2967,4290.9,4290.8,0.237]
[1757154268369,0.4966,4290.9,4290.8,0.237]
[1757154271368,0.6966,4290.9,4290.7,3.2078]
[1757154271573,0.1247,4291.0,4290.8,0.236]
[1757154271874,0.6966,4290.9,4290.8,0.236]
[1757154272571,0.6966,4290.9,4290.2,1.00843389]
[1757154272773,0.2967,4290.3,4290.1,3.2078]
[1757154272978,0.6966,4290.3,4290.2,0.236]
[1757154274272,1.11611,4290.3,4290.2,0.236]
[1757154274476,0.91611,4290.3,4290.2,0.236]
[1757154274777,0.71621,4290.3,4290.2,1.24443389]
[1757154277276,0.41951,4290.3,4290.2,5.47752389]
[1757154277672,0.41951,4290.3,4290.2,5.24443389]
[1757154277977,0.41951,4290.3,4290.2,10.84852389]
[1757154278576,0.41951,4290.3,4290.2,6.84852389]
[1757154278775,0.41951,4290.3,4290.2,6.61543389]
[1757154279779,0.41951,4290.3,4290.2,5.607]
[1757154279979,0.41951,4290.3,4290.2,6.61543389]
[1757154280882,1.34527,4291.2,4290.2,11.03495389]
[1757154281083,0.4214,4291.0,4290.9,1.00843389]
[1757154281277,0.4214,4291.0,4290.9,1.24443389]
[1757154281485,0.2967,4291.4,4290.9,1.24443389]
[1757154282081,0.2967,4291.3,4290.9,1.24443389]
[1757154282281,0.2967,4291.4,4290.9,1.24443389]
[1757154282483,0.2967,4291.3,4290.9,1.24443389]
[1757154282682,0.2967,4291.4,4290.9,1.24443389]
[1757154282987,0.1247,4291.5,4290.9,1.24443389]
[1757154283189,0.3246,4291.5,4291.0,1.00843389]
[1757154283387,0.2967,4291.4,4291.0,1.00843389]
[1757154284088,0.2967,4291.3,4291.0,1.00843389]
[1757154284388,0.1247,4291.5,4291.0,1.00843389]
[1757154284389,0.2967,4291.2,4291.0,1.00843389]
[1757154284589,0.2967,4291.1,4291.0,1.00843389]
[1757154285283,0.6966,4291.1,4291.0,0.236]
[1757154285484,0.4966,4291.1,4291.0,0.236]
[1757154287391,0.4966,4291.1,4291.0,5.607]
[1757154287587,0.6966,4291.1,4291.0,5.607]
[1757154293298,0.6966,4291.1,4291.0,0.236]
[1757154293802,0.4258,4291.0,4290.9,5.371]
[1757154294096,0.3049,4291.4,4290.9,5.607]
[1757154294399,0.3049,4291.4,4291.3,1.00843389]
[1757154294601,0.5144,4291.4,4291.3,1.24443389]
[1757154294795,0.5144,4291.4,4291.3,4.45223389]
[1757154295900,0.5144,4291.4,4291.3,3.4438]
[1757154296204,0.7257,4291.4,4291.3,3.4438]
[1757154301201,0.5144,4291.4,4291.3,3.4438]
[1757154301401,0.3049,4291.4,4291.3,3.4438]
[1757154301608,0.3049,4291.4,4291.3,4.29516106]
[1757154301808,0.5144,4291.4,4291.3,3.4438]
[1757154301999,0.5144,4291.4,4291.3,4.29516106]
[1757154303806,0.7257,4291.4,4291.3,4.29516106]
[1757154304509,4.7257,4291.4,4291.3,3.2078]
[1757154304709,8.54346586,4291.4,4291.3,0.236]
[1757154305805,5.33566586,4291.4,4291.3,0.236]
[1757154306606,0.4208,4290.8,4290.7,5.371]
[1757154306804,0.7257,4290.8,4290.7,5.607]
[1757154307713,0.3049,4290.8,4290.7,5.607]
[1757154307913,0.5144,4290.8,4290.7,5.607]
[1757154308412,0.7257,4290.8,4290.7,6.22236106]
[1757154308612,0.7257,4290.8,4290.7,6.45836106]
[1757154311108,0.7257,4290.8,4290.7,1.08736106]
[1757154311611,1.33618827,4290.8,4290.7,1.08736106]
[1757154313115,0.7257,4290.8,4290.7,1.08736106]
[1757154315119,0.3049,4290.8,4290.7,1.08736106]
[1757154316113,0.5144,4290.8,4290.7,1.08736106]
[1757154316716,0.7257,4290.8,4290.7,1.08736106]
[1757154318119,0.5144,4290.8,4290.7,1.08736106]
[1757154320220,0.3049,4290.8,4290.7,1.08736106]
[1757154320728,0.3194,4291.4,4290.7,5.32042106]
[1757154320922,0.1247,4291.5,4291.3,0.85136106]
[1757154321216,0.3194,4291.4,4291.3,0.85136106]
[1757154321520,0.3194,4291.4,4291.3,1.08736106]
[1757154326023,0.3194,4291.5,4291.3,1.08736106]
[1757154326818,0.5247,4291.8,4291.3,1.08736106]
[1757154327024,3.2078,4291.9,4291.3,0.236]
[1757154327025,0.1164,4291.5,4291.3,0.236]
[1757154327325,0.4358,4291.5,4291.4,0.85136106]
[1757154328628,3.2078,4291.9,4291.4,0.85136106]
[1757154328830,0.3194,4291.7,4291.5,0.236]
[1757154329029,0.5247,4291.8,4291.5,0.236]
[1757154329229,0.3194,4291.6,4291.5,0.236]
[1757154329629,0.5247,4291.6,4291.5,0.236]
[1757154332028,0.7271,4291.6,4291.5,1.08736106]
[1757154334033,0.5247,4291.6,4291.5,1.08736106]
[1757154335134,0.7271,4291.6,4291.5,1.08736106]
[1757154335934,0.3194,4291.6,4291.5,1.08736106]
[1757154336635,0.5247,4291.6,4291.5,1.08736106]
[1757154341131,0.7271,4291.6,4291.5,1.08736106]
[1757154341938,0.7271,4291.6,4291.5,1.08636106]
[1757154343834,0.5247,4291.6,4291.5,1.08636106]
[1757154344533,0.3194,4291.9,4291.5,1.31938106]
[1757154344741,0.1247,4292.5,4291.9,0.85136106]
[1757154344939,0.1247,4292.5,4291.9,4.29416106]
[1757154345333,0.4441,4292.0,4291.9,4.29416106]
[1757154345533,0.6494,4292.0,4291.9,4.05916106]
[1757154345742,0.8518,4292.0,4291.9,4.29416106]
[1757154345934,0.8518,4292.0,4291.9,4.48073788]
[1757154347642,0.8518,4292.0,4291.9,4.29416106]
[1757154348042,0.8518,4292.0,4291.9,4.05916106]
[1757154348244,0.8518,4292.0,4291.9,3.4428]
[1757154348445,1.46186912,4292.0,4291.9,3.4428]
[1757154351844,1.46186912,4292.0,4291.9,4.29416106]
[1757154356051,0.1164,4293.0,4292.4,0.2077]
[1757154356256,0.12060424,4292.9,4292.5,0.9563]
[1757154356447,0.5315,4293.0,4292.9,0.2077]
[1757154356642,0.65206309,4293.0,4292.9,0.6555]
[1757154356842,0.65206309,4293.0,4292.9,0.9573]
[1757154357356,0.5315,4293.0,4292.9,1.80866106]
[1757154358158,0.8422,4293.0,4292.9,1.80866106]
[1757154359756,0.7258,4293.0,4292.9,1.80866106]
[1757154361258,0.8477,4293.0,4292.9,1.80866106]
[1757154361756,0.537,4292.5,4292.4,1.05906106]
[1757154361956,0.8477,4292.5,4292.4,1.29406106]
[1757154362156,0.8477,4292.5,4292.4,1.50586106]
[1757154362461,0.8477,4292.5,4292.4,1.80766106]
[1757154363454,0.8477,4292.5,4292.4,0.9563]
[1757154364959,0.8477,4292.5,4292.4,0.7213]
[1757154365165,0.8477,4292.5,4292.4,0.235]
[1757154368063,1.45497447,4292.5,4292.4,0.235]
[1757154371670,1.45497447,4292.5,4292.4,1.96400612]
[1757154371866,0.3107,4292.9,4292.5,0.096]
[1757154372168,0.1164,4293.5,4292.8,1.72900612]
[1757154372364,1.45385925,4293.4,4293.3,0.2077]
[1757154373170,1.33334466,4293.4,4293.3,0.2077]
[1757154373469,1.45383782,4293.4,4293.2,0.235]
[1757154373668,1.33334466,4293.3,4293.2,0.235]
[1757154373864,1.33334466,4293.3,4293.2,0.9563]
[1757154375166,1.33334466,4293.3,4293.2,0.6545]
[1757154375671,1.33327329,4293.3,4293.2,0.6545]
[1757154382673,1.33327329,4293.3,4293.2,0.9757]
[1757154383066,1.12837329,4293.3,4293.2,0.9757]
[1757154384473,0.91817329,4293.3,4293.2,0.9757]
[1757154385077,0.60747329,4293.3,4293.2,0.9757]
[1757154385378,3.5155,4293.6,4293.4,0.4071]
[1757154385379,0.3077,4293.5,4293.4,0.4071]
[1757154385576,0.8475,4293.5,4293.4,0.4071]
[1757154386081,1.4596256,4293.5,4293.4,0.4071]
[1757154386380,0.8475,4293.5,4293.4,0.7283]
[1757154391091,0.8475,4293.5,4293.4,0.4071]
[1757154392192,4.78717204,4293.5,4293.2,0.1485]
[1757154392380,4.0553,4293.5,4293.4,0.235]
[1757154392579,4.0553,4293.5,4293.2,0.1485]
[1757154392580,4.78721041,4293.5,4293.3,0.235]
[1757154392790,1.46041041,4293.4,4293.3,0.235]
[1757154393891,1.46041339,4293.4,4293.3,0.235]
[1757154395590,1.34001071,4293.4,4293.3,0.235]
[1757154396994,1.34001071,4293.4,4293.2,0.3835]
[1757154397292,1.34001071,4293.3,4293.2,0.3835]
[1757154397690,1.34001071,4293.3,4293.2,0.235]
[1757154399694,1.34001071,4293.3,4293.2,0.4355]
[1757154400085,0.91921071,4293.3,4293.2,0.9633]
[1757154400291,0.3077,4293.6,4293.2,5.19622]
[1757154400591,0.61224035,4293.5,4293.4,0.7283]
[1757154400994,0.91994035,4293.5,4293.4,0.7283]
[1757154401588,0.91994035,4293.5,4293.4,1.73600612]
[1757154401794,0.61224035,4293.5,4293.4,1.73600612]
[1757154401993,0.91994035,4293.5,4293.4,1.73600612]
[1757154402190,1.12984035,4293.5,4293.4,1.73600612]
[1757154402392,0.61224035,4293.5,4293.4,1.73600612]
[1757154403697,0.91994035,4293.5,4293.4,1.73600612]
[1757154403897,0.1219,4294.0,4293.4,1.73600612]
[1757154404093,0.3077,4293.8,4293.5,0.3212]
[1757154404302,0.5176,4293.9,4293.8,0.7283]
[1757154404495,1.34089939,4293.9,4293.8,0.7283]
[1757154404989,1.34089939,4293.9,4293.8,1.73600612]
[1757154404990,1.12999939,4293.9,4293.8,1.73600612]
[1757154405195,0.61239939,4293.9,4293.8,1.73600612]
[1757154405791,0.61235893,4293.9,4293.8,1.41480612]
[1757154406096,0.92005893,4293.9,4293.8,1.41480612]
[1757154406500,0.92005893,4293.9,4293.8,1.73600612]
[1757154407295,0.3077,4294.2,4293.8,1.73600612]
[1757154407500,0.7285,4294.4,4294.3,0.4071]
[1757154407695,0.7285,4294.4,4294.3,0.9633]
[1757154407696,1.34075207,4294.4,4294.3,0.9633]
[1757154408797,0.61225207,4294.4,4294.3,0.9633]
[1757154409001,0.1972,4294.5,4294.4,0.7213]
[1757154409199,0.855,4294.5,4294.4,0.9563]
[1757154410204,0.7265,4294.2,4294.1,3.2078]
[1757154410396,0.7265,4294.2,4294.1,3.4428]
[1757154412697,0.7265,4294.2,4294.1,4.1641]
[1757154415596,0.5176,4294.2,4294.1,4.1641]
[1757154416302,0.1285,4294.5,4294.1,4.1641]
[1757154416495,0.3204,4294.9,4294.4,0.3165]
[1757154416699,0.528,4295.0,4294.9,0.7213]
[1757154416901,0.528,4295.0,4294.9,0.9563]
[1757154417101,1.45988162,4295.0,4294.9,0.9563]
[1757154417300,0.8484,4295.0,4294.9,0.9563]
[1757154417703,0.3204,4295.0,4294.9,0.9563]
[1757154417895,0.855,4295.0,4294.9,0.235]
[1757154418399,0.855,4295.0,4294.9,0.4048]
[1757154418601,0.855,4295.0,4294.9,0.235]
[1757154420797,0.3204,4294.9,4294.1,4.53200612]
[1757154420998,0.1972,4294.3,4294.2,0.6398]
[1757154421194,0.5176,4294.3,4294.2,0.9563]
[1757154422198,0.5176,4294.3,4294.2,0.7213]
[1757154422394,0.5176,4294.3,4294.2,0.9563]
[1757154424707,0.7265,4294.3,4294.2,0.9563]
[1757154425305,0.5176,4294.3,4294.2,0.9563]
[1757154425504,0.5176,4294.3,4294.2,1.8064758]
[1757154427118,0.7265,4294.3,4294.2,1.8064758]
[1757154427412,0.7265,4294.3,4294.2,1.4899758]
[1757154428010,0.7265,4294.3,4294.2,1.2938758]
[1757154432319,0.7265,4294.3,4294.2,1.8064758]
[1757154434507,0.1285,4295.0,4294.2,1.8064758]
[1757154434714,0.73334031,4294.9,4294.3,0.3165]
[1757154434913,1.45984031,4294.8,4294.7,0.2087]
[1757154435114,1.45984031,4294.8,4294.7,1.2938758]
[1757154435521,1.33886848,4294.8,4294.7,1.2938758]